bitfinex-derivatives/quotes_ETHF0:USTF0_20250224
["timestamp","ask_amount","ask_price","bid_price","bid_amount"]
[1740392299853,3.173,2682.7,2682.6,0.00558857]
[1740392301656,2.987,2682.8,2682.6,0.00558857]
[1740392301857,3.168,2682.7,2682.6,0.00558857]
[1740392302048,3.166,2682.7,2682.6,0.00558857]
[1740392302358,0.5608,2683.4,2682.6,0.00558857]
[1740392302359,6.3758,2683.2,2682.6,6.00558857]
[1740392302556,6.3758,2683.2,2682.7,1.677]
[1740392303653,6.3758,2683.2,2682.7,1.1077]
[1740392303856,3.2078,2682.9,2682.7,1.1077]
[1740392304055,3.166,2682.8,2682.7,1.1077]
[1740392304755,3.2078,2682.9,2682.7,1.1077]
[1740392304964,3.2078,2682.9,2682.7,1.6623]
[1740392305161,23.648,2683.6,2682.7,1.6623]
[1740392305459,3.169,2683.5,2683.0,3.2078]
[1740392306060,3.169,2683.5,2682.8,3.2078]
[1740392306251,3.169,2683.5,2683.1,3.2078]
[1740392307957,3.2078,2683.4,2682.7,4.8701]
[1740392308956,3.2078,2683.4,2683.0,3.2078]
[1740392312160,6.3808,2683.4,2683.0,3.2078]
[1740392313463,6.3808,2683.4,2683.2,0.00556216]
[1740392313758,3.2078,2683.4,2683.2,0.00556216]
[1740392313965,3.21338857,2683.9,2683.2,6.00556216]
[1740392314162,3.21338857,2683.9,2683.3,0.5366]
[1740392314351,3.21338857,2683.9,2683.4,4.3233]
[1740392318267,2.32268857,2683.9,2683.4,4.3233]
[1740392318568,3.16,2684.6,2683.8,3.2078]
[1740392318865,3.16,2684.6,2683.4,7.1155]
[1740392318866,3.16,2684.6,2684.2,3.2078]
[1740392319064,3.2078,2684.7,2684.3,1.1363]
[1740392319565,0.00558857,2684.8,2684.5,3.2078]
[1740392321568,0.00558857,2684.8,2684.6,0.5688]
[1740392323470,0.00558857,2684.8,2684.6,1.81904446]
[1740392323866,3.2078,2685.2,2684.6,7.81904446]
[1740392324063,3.2078,2685.2,2684.6,1.81904446]
[1740392324268,3.2078,2685.6,2684.9,3.2078]
[1740392324574,3.2078,2685.6,2685.0,2.38434446]
[1740392325072,3.21338857,2685.6,2685.0,2.38434446]
[1740392325374,0.00558857,2685.6,2685.5,3.2078]
[1740392326369,0.00558857,2685.6,2685.2,3.2078]
[1740392326568,1.09638857,2685.6,2685.2,3.2078]
[1740392326866,3.158,2685.5,2685.2,3.2078]
[1740392327668,3.158,2685.5,2685.1,3.70024446]
[1740392327870,3.2078,2685.2,2684.7,1.25024446]
[1740392328071,3.2078,2685.2,2684.4,3.2078]
[1740392328072,3.159,2685.1,2684.4,3.2078]
[1740392328580,0.5805,2685.0,2684.4,3.2078]
[1740392328761,0.5805,2685.0,2684.1,0.5677]
[1740392328762,3.7704,2684.9,2684.3,3.2078]
[1740392328965,3.7704,2684.9,2684.0,3.2078]
[1740392329669,3.157,2684.8,2684.0,3.2078]
[1740392332069,4.0474856,2684.9,2684.0,3.2078]
[1740392332270,3.149,2684.8,2684.3,3.2078]
[1740392333074,3.149,2684.8,2684.0,3.2078]
[1740392333476,3.2078,2684.6,2684.0,3.2078]
[1740392334871,3.145,2684.5,2684.0,3.2078]
[1740392335865,3.2078,2684.6,2684.0,3.2078]
[1740392336265,3.142,2684.7,2684.3,3.2078]
[1740392336469,3.142,2684.7,2684.4,0.5592]
[1740392337579,6.9124,2684.9,2684.4,0.5592]
[1740392337783,6.9124,2684.9,2684.4,2.38064446]
[1740392341571,6.9124,2684.9,2684.4,1.25024446]
[1740392342176,6.9124,2684.9,2684.4,4.45804446]
[1740392343181,3.7704,2684.9,2684.4,4.45804446]
[1740392343378,6.9024,2684.9,2684.4,4.45804446]
[1740392343593,0.5805,2685.0,2684.8,3.2078]
[1740392343789,3.6941,2685.4,2684.8,3.2078]
[1740392343995,0.5581,2685.4,2685.1,3.2078]
[1740392344190,1.34838619,2685.7,2685.1,3.2078]
[1740392344391,0.5701,2685.7,2685.4,3.2078]
[1740392344598,3.138,2686.0,2685.4,3.2078]
[1740392344990,6.3458,2686.0,2685.4,3.2078]
[1740392348096,3.2078,2686.0,2685.4,3.2078]
[1740392348400,3.7041,2686.2,2685.5,1.25024446]
[1740392348591,3.7041,2686.2,2686.0,3.2078]
[1740392348901,3.7659,2686.4,2686.0,3.2078]
[1740392349694,3.7659,2686.4,2685.9,0.00558857]
[1740392350302,3.7659,2686.4,2686.0,3.2078]
[1740392352400,3.13,2686.3,2686.0,3.2078]
[1740392353293,3.7659,2686.4,2686.0,3.758]
[1740392353896,3.2078,2686.4,2686.0,3.758]
[1740392354103,3.2078,2686.4,2686.0,4.2984]
[1740392356093,3.2078,2686.4,2686.0,3.758]
[1740392356493,0.565,2686.3,2685.9,0.00558857]
[1740392356707,1.155,2686.3,2685.9,0.00558857]
[1740392358595,1.155,2686.3,2685.7,3.2078]
[1740392358795,3.2078,2685.8,2684.7,3.2078]
[1740392359000,3.2078,2685.4,2684.7,3.2078]
[1740392359203,3.6819,2685.3,2684.7,3.2078]
[1740392359398,3.6819,2685.3,2684.4,3.2078]
[1740392359803,0.00558857,2685.1,2684.6,0.00558857]
[1740392360405,3.21338857,2685.1,2684.6,0.00558857]
[1740392360703,3.126,2685.0,2684.6,0.00558857]
[1740392361908,0.5477,2684.9,2684.6,0.00558857]
[1740392367217,3.2078,2684.7,2684.1,4.45804446]
[1740392367411,3.6806,2684.6,2684.1,3.2078]
[1740392367609,3.2078,2684.2,2683.6,3.2078]
[1740392367914,3.115,2684.1,2683.6,3.2078]
[1740392368313,3.115,2684.1,2683.6,3.21338857]
[1740392368506,3.7082,2684.1,2683.6,3.21338857]
[1740392368703,3.2078,2683.9,2683.6,0.00558857]
[1740392368903,0.5405,2683.8,2683.2,3.21336216]
[1740392369116,3.114,2683.7,2683.2,0.00556216]
[1740392369510,3.2078,2683.6,2683.2,0.00556216]
[1740392371015,3.2078,2683.3,2682.5,3.2078]
[1740392371217,3.111,2683.2,2682.5,3.2078]
[1740392372117,6.098,2683.2,2682.5,3.2078]
[1740392373415,3.2078,2683.3,2682.5,3.2078]
[1740392373724,3.112,2683.2,2682.8,3.2078]
[1740392375616,3.2078,2683.3,2682.8,3.2078]
[1740392375919,3.111,2683.2,2682.8,3.2078]
[1740392376308,0.5419,2683.6,2682.8,3.2078]
[1740392376511,0.00558857,2683.7,2683.1,3.2078]
[1740392376820,0.00558857,2683.7,2683.4,3.2078]
[1740392378414,3.113,2684.4,2683.4,3.2078]
[1740392378621,3.113,2684.4,2683.9,3.2078]
[1740392379415,3.11858857,2684.4,2683.9,3.21338857]
[1740392379726,0.00558857,2684.4,2683.9,3.21338857]
[1740392379923,0.00558857,2684.4,2684.0,1.1254]
[1740392380215,0.00558857,2684.4,2684.2,3.2078]
[1740392382817,0.00558857,2684.4,2684.0,1.79384446]
[1740392385325,0.00558857,2684.4,2683.9,3.21338857]
[1740392385625,0.56818857,2684.4,2683.9,3.21338857]
[1740392387019,3.7553,2684.3,2683.9,0.00558857]
[1740392387323,3.2078,2684.0,2683.3,3.2078]
[1740392387628,3.101,2683.9,2683.3,3.2078]
[1740392389023,3.2078,2684.0,2683.3,3.2078]
[1740392389223,3.097,2683.8,2683.3,3.2078]
[1740392392928,3.09,2683.7,2683.3,3.2078]
[1740392393332,3.09,2683.7,2683.4,0.5555]
[1740392397132,0.5475,2684.3,2683.4,0.5555]
[1740392397432,3.079,2684.2,2683.4,1.1091]
[1740392397634,3.079,2684.2,2683.4,1.6802]
[1740392398037,0.5475,2684.3,2683.7,3.2078]
[1740392398229,3.079,2684.2,2683.7,3.2078]
[1740392400735,3.2078,2684.1,2683.4,3.7633]
[1740392400929,6.2868,2684.2,2683.2,3.2078]
[1740392401133,6.2868,2684.2,2682.8,3.70024446]
[1740392401134,6.2868,2684.2,2683.6,3.2078]
[1740392401634,6.2868,2684.2,2683.2,3.2078]
[1740392402336,6.2868,2684.2,2683.5,3.2078]
[1740392403141,6.2868,2684.2,2683.1,3.2078]
[1740392403635,3.2078,2683.6,2682.9,0.5363]
[1740392403842,4.213,2683.5,2682.9,0.5363]
[1740392404337,4.213,2683.5,2682.8,3.2078]
[1740392404540,3.2078,2683.3,2682.5,3.2078]
[1740392406741,0.78031415,2683.4,2681.7,3.2078]
[1740392406742,3.2078,2682.6,2681.7,3.2078]
[1740392406934,3.083,2682.5,2681.7,3.2078]
[1740392407240,0.00558857,2682.4,2681.7,3.2078]
[1740392407743,3.2078,2682.3,2681.7,3.2078]
[1740392408238,3.2078,2682.3,2681.6,0.5485]
[1740392408635,3.2078,2682.0,2681.6,0.5485]
[1740392408836,3.081,2681.9,2681.6,0.5485]
[1740392409238,3.081,2681.9,2681.3,3.2078]
[1740392411346,3.2078,2681.7,2681.3,3.2078]
[1740392411845,0.5532,2681.6,2681.3,3.2078]
[1740392412040,3.077,2681.5,2681.3,3.2078]
[1740392412236,3.077,2681.5,2681.1,0.5774]
[1740392412237,3.2078,2681.4,2680.7,3.2078]
[1740392413346,3.077,2681.3,2680.7,3.2078]
[1740392413834,3.2078,2681.4,2680.7,3.2078]
[1740392414038,3.078,2681.3,2680.7,3.2078]
[1740392414653,3.078,2681.3,2680.8,40.8]
[1740392414848,3.077,2681.2,2680.8,40.8]
[1740392415543,3.075,2681.2,2680.8,40.8]
[1740392415742,6.2818,2681.4,2681.0,3.2078]
[1740392415943,6.2818,2681.4,2681.1,0.5907]
[1740392416442,3.084,2681.3,2681.0,3.2078]
[1740392416644,6.2918,2681.7,2681.0,3.2078]
[1740392417344,3.084,2681.7,2681.3,3.2078]
[1740392417544,3.084,2681.7,2681.4,0.5442]
[1740392418346,6.2918,2681.7,2681.1,3.2078]
[1740392418648,6.2918,2681.7,2681.0,1.25024446]
[1740392420547,3.2078,2681.4,2681.0,1.25024446]
[1740392420747,3.6731,2681.3,2681.0,1.25024446]
[1740392421046,3.6731,2681.3,2680.8,3.2078]
[1740392421247,3.6731,2681.3,2680.9,0.5875]
[1740392423845,3.2078,2681.4,2680.9,0.5875]
[1740392424051,6.2898,2681.4,2681.0,0.5681]
[1740392424252,3.2078,2681.8,2681.0,0.5681]
[1740392424555,3.082,2681.7,2681.2,3.2078]
[1740392424754,3.2078,2681.4,2681.0,0.5681]
[1740392426047,3.079,2681.3,2680.9,0.5875]
[1740392428056,3.2078,2681.1,2680.5,0.5583]
[1740392428358,3.2078,2680.8,2680.3,0.589]
[1740392428560,3.077,2680.7,2680.3,0.589]
[1740392428761,3.6418,2680.7,2680.3,0.589]
[1740392429867,3.6418,2680.7,2680.2,3.2078]
[1740392430063,4.2338,2680.7,2680.2,3.2078]
[1740392430265,3.2078,2680.3,2679.5,0.5941]
[1740392430463,3.2078,2679.9,2679.5,0.5941]
[1740392430660,3.079,2679.8,2679.5,0.5941]
[1740392431261,3.2078,2678.3,2676.6,1.25024446]
[1740392431460,3.2078,2677.6,2676.6,1.25024446]
[1740392431757,3.2078,2677.6,2676.7,3.2078]
[1740392431758,0.00559931,2677.4,2676.7,3.2078]
[1740392431961,0.00559931,2677.4,2676.8,0.584]
[1740392432162,0.00559931,2677.4,2676.9,40.8]
[1740392432353,1.86695,2677.3,2676.8,0.584]
[1740392432560,0.00559931,2677.4,2677.0,3.2078]
[1740392432756,3.2078,2677.1,2675.9,3.70024446]
[1740392432956,3.2078,2676.5,2675.9,3.2078]
[1740392433154,3.2078,2676.5,2675.9,40.8]
[1740392433459,0.74717,2675.9,2675.8,28.99478807]
[1740392433661,0.74717,2675.9,2675.8,28.98361093]
[1740392433858,0.74717,2675.9,2675.8,28.62830531]
[1740392434159,6.0,2675.9,2675.0,14.49865744]
[1740392434363,3.2078,2676.2,2675.4,3.2078]
[1740392434559,3.2078,2677.1,2675.8,3.2078]
[1740392434862,3.2078,2677.1,2675.5,24.238]
[1740392434863,1.86662,2677.8,2676.8,3.2078]
[1740392435057,1.86593,2678.8,2677.6,3.2078]
[1740392435362,0.30186791,2679.2,2678.5,3.2078]
[1740392435363,3.555,2679.2,2678.5,3.2078]
[1740392435562,0.74649,2678.4,2677.9,3.2078]
[1740392435758,3.56,2678.4,2678.2,3.2078]
[1740392435955,0.00559931,2678.5,2678.2,3.2078]
[1740392436564,0.00559931,2678.5,2677.5,3.2078]
[1740392436565,0.74669,2677.6,2677.5,3.2078]
[1740392436761,3.599,2677.6,2677.5,3.2078]
[1740392437160,3.599,2677.6,2677.5,44.0078]
[1740392437357,9.599,2677.6,2677.1,3.2078]
[1740392437562,9.599,2677.6,2676.3,0.5783]
[1740392437563,3.611,2677.6,2677.4,3.2078]
[1740392437860,3.611,2677.6,2677.5,40.8]
[1740392438260,3.609,2678.2,2677.5,40.8]
[1740392438468,3.61,2678.4,2678.1,3.2078]
[1740392438665,0.00559931,2678.5,2678.1,3.2078]
[1740392438966,3.61,2678.4,2677.9,3.2078]
[1740392439560,4.35649,2678.4,2677.9,3.2078]
[1740392439764,3.61,2678.4,2678.2,3.2078]
[1740392439965,0.7465,2678.3,2678.2,3.2078]
[1740392440162,9.61,2678.4,2677.9,3.2078]
[1740392440463,0.74658,2678.0,2677.9,3.2078]
[1740392441157,6.74658,2678.0,2677.9,3.2078]
[1740392441360,0.00559931,2678.5,2677.9,3.2078]
[1740392441574,3.605,2678.4,2677.9,3.2078]
[1740392441873,0.74654,2678.2,2677.9,3.2078]
[1740392442171,3.605,2678.4,2677.9,3.2078]
[1740392442363,0.74656,2678.1,2677.9,3.2078]
[1740392442559,0.00559931,2678.5,2677.9,3.2078]
[1740392443061,1.86618,2678.4,2677.9,3.2078]
[1740392443259,0.00559931,2678.5,2678.2,3.2078]
[1740392443464,3.595,2678.4,2678.2,3.2078]
[1740392444071,0.00559931,2678.5,2678.2,3.2078]
[1740392447371,3.597,2678.4,2678.2,3.2078]
[1740392447870,3.597,2678.4,2678.2,0.00644389]
[1740392448072,0.00559931,2678.5,2678.2,0.00644389]
[1740392448862,3.589,2679.1,2678.2,0.00644389]
[1740392449066,3.589,2679.1,2677.9,3.589]
[1740392449067,3.589,2679.1,2678.9,3.2078]
[1740392451066,3.2078,2679.0,2678.7,0.00559931]
[1740392451578,9.2078,2679.0,2678.7,0.00559931]
[1740392452170,3.2078,2679.0,2678.7,0.00559931]
[1740392452375,3.58,2678.9,2678.7,0.00559931]
[1740392452876,3.579,2678.8,2678.7,0.00559931]
[1740392453077,3.2078,2679.0,2678.7,0.00559931]
[1740392453279,3.576,2678.9,2678.7,0.00559931]
[1740392453775,3.576,2678.8,2678.7,0.00559931]
[1740392456470,9.576,2678.8,2678.7,0.00559931]
[1740392456873,3.576,2678.8,2678.7,0.00559931]
[1740392457675,9.576,2678.8,2678.7,0.00559931]
[1740392458074,3.576,2678.8,2678.7,0.00559931]
[1740392458573,3.576,2678.8,2678.7,0.00018827]
[1740392458871,0.89041934,2678.8,2678.7,0.00018827]
[1740392459179,4.44241934,2678.8,2678.7,0.00018827]
[1740392459779,3.552,2678.8,2678.7,0.00018827]
[1740392460778,0.89166354,2678.9,2678.7,0.00018827]
[1740392461373,6.7488,2679.0,2678.7,0.00018827]
[1740392461974,3.21339931,2679.3,2678.7,0.00018827]
[1740392462182,3.538,2679.2,2678.7,0.00018827]
[1740392462781,3.538,2679.2,2678.8,0.00402852]
[1740392463783,3.532,2679.1,2678.8,0.00402852]
[1740392464184,8.44110745,2679.0,2678.8,0.00402852]
[1740392464888,3.525,2678.9,2678.8,0.00402852]
[1740392465081,6.7328,2678.9,2678.8,0.00402852]
[1740392466781,12.7328,2678.9,2678.8,0.00402852]
[1740392466977,3.2078,2678.9,2678.8,0.00402852]
[1740392467276,8.44110745,2679.0,2678.7,0.0001419]
[1740392467482,3.517,2678.9,2678.7,0.0001419]
[1740392467781,6.7248,2678.9,2678.7,0.0001419]
[1740392468478,0.8969823,2678.8,2678.7,0.0001419]
[1740392469279,8.44110745,2679.0,2678.7,3.2079419]
[1740392469482,4.87350745,2679.0,2678.8,0.5833]
[1740392469683,3.98160745,2679.0,2678.8,0.5833]
[1740392470582,3.98160745,2679.0,2678.7,0.0001419]
[1740392470788,3.98160745,2679.0,2678.2,1.25024446]
[1740392470789,3.2078,2678.9,2678.1,0.15012342]
[1740392470989,3.2078,2678.5,2677.7,3.7539]
[1740392472585,3.2078,2678.5,2677.8,0.5493]
[1740392474286,9.84795869,2678.1,2677.8,0.5493]
[1740392474491,9.84795869,2678.1,2678.0,3.2078]
[1740392474993,9.84795869,2678.1,2678.0,9.2078]
[1740392475796,9.84795869,2678.1,2678.0,3.2078]
[1740392476193,13.34895869,2678.1,2678.0,3.2078]
[1740392476793,9.84795869,2678.1,2678.0,3.2078]
[1740392476996,3.506,2678.1,2678.0,3.2078]
[1740392477997,3.506,2678.1,2677.8,0.5493]
[1740392481500,3.49,2678.0,2677.8,0.5493]
[1740392481894,9.84795869,2678.2,2677.8,0.5493]
[1740392482101,3.49,2678.1,2677.8,0.5493]
[1740392482598,3.49,2678.1,2677.8,0.0484787]
[1740392484306,9.84795869,2678.2,2677.8,0.0484787]
[1740392484597,9.84795869,2678.2,2678.0,3.2078]
[1740392485801,9.84795869,2678.2,2678.1,0.5832]
[1740392486503,9.84795869,2678.2,2678.1,9.5372]
[1740392487004,9.84795869,2678.2,2678.1,6.5832]
[1740392487399,9.84795869,2678.2,2678.1,0.5832]
[1740392488104,16.13066118,2678.6,2678.1,0.5832]
[1740392489899,16.13066118,2678.6,2678.0,3.2078]
[1740392490103,19.33846118,2678.6,2677.7,3.2078]
[1740392490306,0.5825,2678.5,2677.7,3.2078]
[1740392490997,1.4610919,2678.5,2677.7,3.2078]
[1740392492406,3.2078,2678.1,2677.4,3.2078]
[1740392492610,3.451,2678.0,2677.4,3.2078]
[1740392493004,3.2078,2678.1,2677.4,3.2078]
[1740392493202,3.449,2678.0,2677.4,3.2078]
[1740392493503,3.2078,2677.7,2677.2,0.5803]
[1740392493705,3.2078,2677.7,2677.1,3.2078]
[1740392493904,3.21339931,2677.7,2677.1,3.2078]
[1740392494911,3.448,2677.6,2677.1,3.2078]
[1740392495211,3.448,2677.6,2677.4,3.2078]
[1740392495510,0.00559931,2677.7,2677.4,3.2078]
[1740392496916,0.00559931,2677.7,2677.1,3.2078]
[1740392497611,0.00559931,2677.7,2677.4,3.2078]
[1740392497815,0.00559931,2677.7,2677.4,6.1618]
[1740392498014,0.00559931,2677.7,2677.5,0.5893]
[1740392499205,0.00559931,2677.7,2677.5,6.5893]
[1740392499406,0.00559931,2677.7,2677.5,7.1725]
[1740392499608,3.2078,2678.4,2677.6,40.8]
[1740392499811,3.2078,2678.4,2677.9,3.2078]
[1740392500716,0.00559931,2678.4,2678.2,3.2078]
[1740392501819,0.00559931,2678.4,2677.9,3.2078]
[1740392502514,3.438,2678.3,2677.9,3.2078]
[1740392502718,0.00559931,2678.4,2677.9,3.2078]
[1740392504719,3.2078,2678.3,2677.9,0.29038179]
[1740392504922,3.2078,2678.3,2677.6,2.954]
[1740392505219,3.2078,2678.3,2677.8,3.2078]
[1740392505415,0.00559931,2678.4,2677.9,0.5816]
[1740392505813,0.00559931,2678.4,2677.9,4.0076]
[1740392506214,0.00559931,2678.4,2677.9,4.0066]
[1740392506412,0.00559931,2678.4,2678.2,3.2078]
[1740392506617,0.00559931,2678.4,2678.3,2.954]
[1740392506812,0.00559931,2678.4,2678.3,3.5316]
[1740392507013,0.00559931,2678.4,2678.3,9.5316]
[1740392507220,0.00559931,2678.4,2678.3,2.954]
[1740392508315,3.2078,2679.9,2678.3,9.437]
[1740392508515,3.2078,2679.9,2679.1,3.2078]
[1740392508711,3.2078,2679.9,2679.2,4.0409]
[1740392508910,3.2078,2679.9,2679.3,43.754]
[1740392509120,0.5634,2680.5,2679.4,3.2078]
[1740392509121,3.2078,2680.4,2679.4,3.2078]
[1740392509320,3.2078,2680.4,2679.7,3.2078]
[1740392509626,0.00559931,2680.2,2679.8,6.6588]
[1740392509919,3.2078,2680.1,2679.6,0.00559931]
[1740392510922,14.33595717,2679.7,2679.6,0.00559931]
[1740392517224,14.33595717,2679.7,2679.6,6.00559931]
[1740392517923,14.33595717,2679.7,2679.6,0.00559931]
[1740392518117,14.33595717,2679.7,2679.6,6.00559931]
[1740392518920,14.33595717,2679.7,2679.6,0.00559931]
[1740392519126,12.87122407,2680.0,2679.6,0.00559931]
[1740392519325,12.87122407,2680.0,2679.8,3.2078]
[1740392519526,12.87122407,2680.0,2679.9,0.5936]
[1740392519821,12.87122407,2680.0,2679.9,41.3936]
[1740392520030,12.87122407,2680.0,2679.6,0.00559931]
[1740392520223,12.87122407,2680.0,2679.6,3.42759931]
[1740392521726,12.87122407,2680.0,2679.7,3.2078]
[1740392522122,12.87122407,2680.0,2679.7,9.2078]
[1740392523420,0.00559931,2680.2,2679.7,9.2078]
[1740392523619,0.00559931,2680.2,2680.0,3.2078]
[1740392523821,0.00559931,2680.2,2680.1,3.422]
[1740392525232,0.00559931,2680.2,2680.1,9.422]
[1740392525432,0.00559931,2680.2,2680.1,10.0086]
[1740392526125,0.00559931,2680.2,2680.1,10.5773]
[1740392526326,0.00559931,2680.2,2680.1,4.5773]
[1740392526623,0.00559931,2680.2,2680.1,10.0086]
[1740392526822,0.00559931,2680.2,2680.1,10.5773]
[1740392527435,12.87122407,2680.8,2680.1,15.50149879]
[1740392527731,0.5924,2681.3,2680.5,3.2078]
[1740392527928,3.2078,2681.2,2680.6,3.404]
[1740392528625,3.21339931,2681.2,2680.6,3.404]
[1740392529631,3.21339931,2681.2,2680.5,3.2078]
[1740392529829,3.2078,2680.9,2680.2,6.6018]
[1740392533831,3.2078,2680.6,2679.9,6.5838]
[1740392534027,1.1168,2680.5,2679.9,3.2078]
[1740392534227,1.6636,2680.5,2679.9,3.2078]
[1740392534933,1.6636,2680.5,2679.8,44.176]
[1740392538728,3.2078,2680.0,2679.8,40.8]
[1740392538934,3.2078,2680.0,2679.6,0.00559931]
[1740392539134,0.5837,2679.9,2679.6,0.00559931]
[1740392539335,0.5685,2679.8,2679.6,0.00559931]
[1740392541833,3.7468,2679.7,2678.9,44.0078]
[1740392542236,0.539,2679.7,2678.9,44.0078]
[1740392542532,0.539,2679.7,2678.9,44.5865]
[1740392542733,0.00559931,2679.6,2679.0,0.00559931]
[1740392545438,0.00559931,2679.6,2679.3,3.2078]
[1740392546839,0.00559931,2679.6,2679.4,40.8]
[1740392547231,0.00559931,2679.6,2679.3,3.2078]
[1740392547534,0.00559931,2679.6,2679.0,0.00559931]
[1740392547535,3.2078,2679.4,2679.0,0.00559931]
[1740392547733,3.2078,2679.1,2678.6,3.2078]
[1740392547936,0.5469,2679.0,2678.6,3.2078]
[1740392548236,3.335,2678.9,2678.6,3.2078]
[1740392549135,0.5469,2679.0,2678.6,3.2078]
[1740392549530,0.5469,2679.0,2678.5,0.00559931]
[1740392549731,3.2078,2678.8,2678.5,0.00559931]
[1740392549939,0.5428,2678.7,2678.5,0.00559931]
[1740392550133,0.5428,2678.7,2678.1,3.2078]
[1740392551839,3.327,2678.6,2678.1,3.2078]
[1740392553633,4.4477,2678.7,2678.1,3.2078]
[1740392554033,3.2078,2678.8,2678.1,3.2078]
[1740392554236,3.2078,2678.8,2678.2,3.9173]
[1740392554438,3.2078,2678.8,2678.4,3.2078]
[1740392557039,3.2078,2678.8,2678.5,40.8]
[1740392557244,3.2078,2678.8,2678.4,3.2078]
[1740392558351,3.2078,2678.8,2678.1,3.2078]
[1740392558548,1.6947,2678.7,2678.1,3.2078]
[1740392559257,1.1207,2678.7,2678.1,3.2078]
[1740392559755,1.6726,2678.7,2678.1,3.2078]
[1740392563155,1.1207,2678.7,2678.1,3.2078]
[1740392563356,1.1207,2678.7,2678.2,0.5532]
[1740392563549,3.2078,2678.8,2678.2,0.5532]
[1740392564460,3.2078,2678.8,2678.1,3.2078]
[1740392564764,1.7501,2678.7,2678.1,3.2078]
[1740392567459,5.0501,2678.7,2678.1,3.2078]
[1740392568352,1.7501,2678.7,2678.1,3.2078]
[1740392568555,5.0471,2678.7,2678.1,3.2078]
[1740392569454,3.2078,2678.3,2677.8,3.761]
[1740392573367,6.4888,2678.3,2677.7,20.692]
[1740392573559,3.2078,2677.9,2677.4,3.2078]
[1740392574069,0.5809,2677.8,2677.0,3.283]
[1740392574364,0.5809,2677.8,2676.9,6.4908]
[1740392574565,0.5809,2677.8,2677.2,3.2078]
[1740392576161,1.758,2677.8,2677.2,3.2078]
[1740392577271,1.1669,2677.8,2677.2,3.2078]
[1740392577663,0.5683,2677.7,2677.2,3.2078]
[1740392579661,3.264,2677.6,2677.2,3.2078]
[1740392580665,0.5683,2677.7,2677.2,3.2078]
[1740392580868,3.26,2677.6,2677.2,3.2078]
[1740392587069,3.26,2677.6,2676.8,40.8]
[1740392587070,3.2078,2677.3,2676.6,2.954]
[1740392587276,3.2078,2676.7,2675.9,3.2078]
[1740392587678,3.2078,2676.7,2676.2,3.2078]
[1740392588080,3.21339931,2676.7,2676.2,3.2078]
[1740392591383,3.249,2676.6,2676.2,3.2078]
[1740392593188,3.2078,2676.4,2675.7,0.5537]
[1740392593483,0.5372,2676.3,2675.7,0.5537]
[1740392593685,0.5372,2676.3,2675.7,3.7615]
[1740392595177,3.21339931,2676.7,2675.7,3.7615]
[1740392595383,6.44839931,2676.7,2675.7,3.7615]
[1740392595582,6.44839931,2676.7,2675.8,0.5636]
[1740392596185,0.00559931,2676.7,2676.2,3.2078]
[1740392596479,0.00559931,2676.7,2676.5,3.2078]
[1740392596684,0.00559931,2676.7,2676.6,0.5658]
[1740392596881,0.00559931,2676.7,2676.6,1.1084]
[1740392597086,0.00559931,2676.7,2676.6,51.1464]
[1740392597281,4.845,2677.0,2676.6,51.1464]
[1740392597481,3.2078,2677.4,2676.7,2.954]
[1740392597482,8.0528,2677.4,2676.7,2.954]
[1740392598592,3.2078,2677.1,2676.8,0.00559931]
[1740392598890,0.5678,2677.0,2676.8,0.00559931]
[1740392599088,1.155,2677.0,2676.8,0.00559931]
[1740392599288,1.6982,2677.0,2676.8,0.00559931]
[1740392599491,1.6982,2677.0,2676.1,3.2078]
[1740392599688,3.2078,2676.8,2676.1,3.2078]
[1740392599884,6.4658,2676.8,2676.1,3.2078]
[1740392602988,3.2078,2676.5,2675.8,3.2078]
[1740392603292,3.7903,2676.4,2675.8,3.2078]
[1740392603494,0.5674,2676.3,2675.8,3.2078]
[1740392603789,1.1301,2676.3,2675.8,3.2078]
[1740392606289,3.2078,2676.5,2675.8,3.2078]
[1740392606792,3.2078,2676.5,2675.8,6.1618]
[1740392610493,6.4328,2676.5,2675.8,6.1618]
[1740392612296,11.2778,2676.5,2675.8,3.2078]
[1740392614399,3.218,2676.4,2675.8,3.2078]
[1740392615001,8.0528,2676.5,2675.8,3.2078]
[1740392615197,11.2728,2676.5,2675.8,3.2078]
[1740392615601,8.0528,2676.5,2675.8,3.2078]
[1740392621300,3.207,2676.4,2675.8,3.2078]
[1740392621707,3.209,2676.3,2675.8,3.2078]
[1740392622011,4.3027,2676.2,2675.8,3.2078]
[1740392622507,0.5624,2676.1,2675.8,3.2078]
[1740392623398,3.2078,2675.9,2675.2,3.2078]
[1740392623603,4.845,2675.8,2675.2,3.2078]
[1740392623802,8.05959931,2675.8,2675.2,3.2078]
[1740392625510,3.2078,2675.4,2675.0,20.717]
[1740392629208,4.85059931,2675.8,2675.0,20.717]
[1740392629209,8.05839931,2675.8,2675.0,23.9248]
[1740392629807,8.05839931,2675.8,2675.0,20.717]
[1740392630007,8.05839931,2675.8,2674.7,6.9486]
[1740392630008,8.05839931,2675.8,2674.7,3.7466]
[1740392630315,3.2078,2675.4,2674.7,3.7466]
[1740392630616,4.8909,2675.3,2674.7,3.7466]
[1740392631308,3.192,2675.2,2674.7,3.7466]
[1740392631511,3.192,2675.2,2674.7,3.2078]
[1740392631910,4.845,2675.1,2674.7,3.2078]
[1740392632110,8.0528,2675.1,2674.3,3.2078]
[1740392632320,3.2078,2674.7,2674.0,3.2078]
[1740392632709,0.5927,2674.6,2674.0,3.2078]
[1740392633012,0.5927,2674.6,2673.9,0.5571]